bitfinex-derivatives/quotes_ETHF0:USTF0_20260201
["timestamp","ask_amount","ask_price","bid_price","bid_amount"]
[1769983978654,2.34864846,2327.0,2325.6,2.39821216]
[1769983978854,2.34864846,2326.9,2325.6,2.39821216]
[1769983979360,0.22282724,2326.8,2325.6,2.39821216]
[1769983979555,0.22282724,2326.5,2325.3,6.5377274]
[1769983979763,2.34864846,2326.6,2325.3,2.768]
[1769983979963,2.34864846,2326.6,2325.2,2.40336431]
[1769983980165,0.21513,2326.8,2325.2,2.40336431]
[1769983980360,2.7866057,2326.8,2325.2,2.40336431]
[1769983980564,2.34864846,2326.5,2325.2,2.40336431]
[1769983980764,2.34864846,2327.4,2325.2,2.40336431]
[1769983981065,2.34864846,2327.4,2326.0,2.39821216]
[1769983981267,2.34864846,2326.7,2325.6,4.64370767]
[1769983981566,0.00182757,2327.5,2326.4,2.39821216]
[1769983981764,2.34864846,2328.8,2326.9,2.39821216]
[1769983982158,2.34864846,2328.5,2327.0,6.27221216]
[1769983982362,2.34864846,2328.5,2327.0,2.39821216]
[1769983982560,2.34864846,2327.7,2326.5,5.17521216]
[1769983982760,0.21501,2328.1,2326.6,2.39821216]
[1769983982960,2.56369846,2327.7,2326.5,0.00437241]
[1769983983266,2.34864846,2328.1,2326.5,2.40258457]
[1769983983468,2.5714757,2328.1,2326.5,2.40258457]
[1769983983668,0.22282724,2327.6,2326.5,2.40258457]
[1769983983966,0.22282724,2326.9,2325.7,2.39821216]
[1769983984164,2.34864846,2326.6,2325.4,8.41322999]
[1769983984366,0.22282724,2326.6,2325.4,2.39821216]
[1769983984570,2.34864846,2328.0,2326.3,2.39821216]
[1769983984765,2.35222309,2327.6,2326.3,7.04171475]
[1769983985065,0.22282724,2327.5,2326.5,2.39821216]
[1769983985262,0.00357463,2327.6,2326.5,2.39821216]
[1769983985866,2.56359846,2328.8,2327.0,2.39821216]
[1769983986056,2.56359846,2328.8,2326.6,4.64350259]
[1769983986057,2.34864846,2328.1,2326.6,7.04171475]
[1769983986260,2.34864846,2327.6,2326.4,4.64350259]
[1769983986462,0.22282724,2327.5,2326.1,2.39821216]
[1769983986769,2.34864846,2327.6,2326.3,2.40324105]
[1769983987066,2.34864846,2327.9,2326.4,2.39821216]
[1769983987259,2.34864846,2327.9,2326.6,2.39821216]
[1769983987458,2.43981147,2327.8,2326.4,4.64530486]
[1769983987662,2.43981147,2327.6,2326.3,0.00502889]
[1769983987965,2.43981147,2328.0,2326.5,2.3168056]
[1769983988267,2.43981147,2327.8,2326.5,2.3168056]
[1769983988464,2.43981147,2327.8,2326.3,4.64838139]
[1769983988465,2.65485147,2327.8,2326.3,4.64838139]
[1769983988763,2.43981147,2327.0,2326.3,0.00502889]
[1769983988959,2.43981147,2327.8,2326.4,2.3168056]
[1769983989162,0.21508,2327.4,2326.4,2.3168056]
[1769983989462,0.21508,2327.4,2326.3,0.00502889]
[1769983989463,2.65489147,2327.4,2326.3,0.00502889]
[1769983989664,2.43981147,2327.8,2326.3,2.32183449]
[1769983989866,2.66263871,2327.8,2326.3,2.32183449]
[1769983990162,2.43981147,2327.8,2326.3,2.32183449]
[1769983990665,0.22282724,2327.6,2326.3,2.32183449]
[1769983990860,2.87769871,2327.6,2326.3,2.32183449]
[1769983991063,2.43981147,2327.1,2325.8,4.64474316]
[1769983991259,2.43981147,2327.1,2325.4,2.3168056]
[1769983991464,2.65492147,2327.1,2325.7,2.3168056]
[1769983991663,2.65492147,2327.1,2325.8,2.3168056]
[1769983991963,2.65492147,2327.1,2325.9,2.3168056]
[1769983992169,2.88083848,2327.1,2325.9,2.32172501]
[1769983992366,0.22282724,2327.0,2325.9,2.32172501]
[1769983992566,0.22282724,2326.9,2325.9,2.32172501]
[1769983992863,0.22282724,2326.5,2325.5,2.3168056]
[1769983993063,0.22282724,2326.6,2325.5,2.3168056]
[1769983993263,0.22282724,2326.5,2325.5,2.3168056]
[1769983993566,0.22282724,2326.3,2325.3,4.6407211]
[1769983993760,2.66263871,2325.8,2324.8,2.3168056]
[1769983993964,2.43981147,2326.4,2324.9,6.9575267]
[1769983994166,0.2152,2326.0,2324.9,2.3168056]
[1769983994465,2.43981147,2326.1,2324.9,2.3168056]
[1769983994858,0.22282724,2325.8,2324.9,2.32135364]
[1769983995062,0.22282724,2325.8,2324.9,0.00454804]
[1769983995264,0.21522,2325.8,2324.9,2.32135364]
[1769983995467,0.43804724,2325.8,2324.9,2.32135364]
[1769983995966,0.22282724,2325.7,2324.9,2.32135364]
[1769983996167,0.21522,2325.8,2324.9,2.32135364]
[1769983996469,0.22282724,2325.5,2324.9,2.32135364]
[1769983996669,0.22282724,2325.6,2324.9,2.32135364]
[1769983996868,0.22282724,2325.6,2324.9,0.00454804]
[1769983997168,0.22282724,2325.4,2324.9,0.00454804]
[1769983997472,0.00438092,2325.4,2324.9,0.00454804]
[1769983997766,2.43981147,2326.4,2325.1,2.3168056]
[1769983997970,2.65503147,2325.9,2324.9,0.00454804]
[1769983998761,2.65908297,2325.9,2324.9,0.00454804]
[1769983998967,2.65908297,2325.9,2324.9,2.32135364]
[1769983999272,2.43981147,2326.7,2325.4,2.3168056]
[1769983999464,0.21518,2326.3,2325.3,2.3168056]
[1769983999670,3.872,2326.8,2325.5,2.3168056]
[1769983999868,3.872,2326.8,2325.7,2.3168056]
[1769984000167,2.65496147,2326.6,2325.5,4.63620564]
[1769984000360,2.65496147,2326.6,2325.4,9.74201124]
[1769984000762,2.65496147,2326.6,2325.5,2.3168056]
[1769984000961,0.00314279,2326.8,2325.4,2.3168056]
[1769984001166,0.00314279,2326.8,2325.7,2.3168056]
[1769984001360,0.00314279,2326.8,2325.9,3.7697274]
[1769984001572,3.872,2327.5,2326.3,2.3168056]
[1769984001770,3.872,2327.5,2326.5,2.3168056]
[1769984002170,0.21498,2328.4,2326.9,2.3168056]
[1769984002171,2.43981147,2328.3,2326.9,2.3168056]
[1769984002368,0.21498,2328.4,2327.1,2.3168056]
[1769984002666,2.65480147,2328.3,2327.1,2.3168056]
[1769984002865,2.65480147,2328.3,2327.1,2.3207747]
[1769984003066,2.65480147,2328.3,2327.1,0.0039691]
[1769984003271,2.43981147,2328.1,2327.1,0.0039691]
[1769984003570,2.43981147,2328.1,2327.1,2.3207747]
[1769984003766,0.0042104,2328.4,2327.3,2.3168056]
[1769984004170,6.31181147,2328.9,2327.5,6.086533]
[1769984004366,6.31181147,2328.9,2327.6,6.91850522]
[1769984004570,6.31181147,2328.9,2327.6,2.3168056]
[1769984004770,2.65471147,2329.3,2327.8,2.3168056]
[1769984005065,2.66177603,2331.0,2328.2,2.3168056]
[1769984005269,2.66177603,2331.0,2329.6,6.086533]
[1769984005270,0.22196456,2331.0,2329.6,6.086533]
[1769984005470,0.01133312,2334.1,2330.7,2.3168056]
[1769984005672,2.45114459,2334.1,2331.7,2.3168056]
[1769984005872,3.872,2335.3,2331.7,2.3168056]
[1769984005873,2.43981147,2335.2,2332.3,2.3168056]
[1769984006070,2.43981147,2335.2,2332.6,2.3168056]
[1769984006270,2.43981147,2335.2,2332.9,2.3168056]
[1769984006472,2.43981147,2335.6,2333.1,2.3168056]
[1769984006676,2.43981147,2335.6,2333.3,2.3168056]
[1769984006872,2.43981147,2335.4,2333.5,2.3168056]
[1769984007076,2.43981147,2335.4,2333.7,2.3168056]
[1769984007270,2.43981147,2336.2,2333.9,2.3168056]
[1769984007472,2.43981147,2336.8,2334.1,2.3168056]
[1769984007771,2.43981147,2335.9,2334.2,0.6700687]
[1769984008073,2.43981147,2336.3,2334.4,2.3168056]
[1769984008273,2.43981147,2336.3,2334.5,2.3168056]
[1769984008478,2.43981147,2335.6,2334.2,0.6700687]
[1769984008772,2.43981147,2335.3,2333.5,0.00315565]
[1769984008978,2.66439452,2334.5,2333.5,0.00315565]
[1769984009170,2.43981147,2334.5,2333.5,0.00315565]
[1769984009376,0.22458305,2334.4,2332.6,2.3168056]
[1769984009667,2.43981147,2334.5,2332.6,2.3168056]
[1769984010376,2.44296712,2334.5,2332.6,2.32014302]
[1769984010972,2.43981147,2334.4,2332.6,2.32014302]
[1769984011576,0.00315565,2334.5,2332.6,2.32014302]
[1769984012468,2.43981147,2334.4,2332.6,2.32014302]
[1769984012677,2.66439452,2334.4,2332.6,2.32014302]
[1769984013369,2.43981147,2334.1,2332.6,2.32014302]
[1769984013768,3.865,2334.3,2332.6,2.32014302]
[1769984014179,0.22458305,2334.1,2332.6,2.32014302]
[1769984014367,6.30481147,2334.3,2332.6,2.32014302]
[1769984014570,6.30481147,2334.3,2333.0,2.3168056]
[1769984015078,0.22458305,2334.1,2333.0,2.3168056]
[1769984015375,2.43981147,2334.1,2332.6,2.32014302]
[1769984015579,0.22458305,2333.7,2332.6,2.32014302]
[1769984015774,2.43981147,2333.7,2332.6,0.00333742]
[1769984015978,0.22458305,2333.3,2332.6,0.00333742]
[1769984016280,2.66439452,2333.6,2332.6,0.00333742]
[1769984016479,0.22458305,2333.2,2332.6,0.00333742]
[1769984017078,3.863,2333.3,2331.8,2.3168056]
[1769984017272,2.43981147,2333.4,2331.8,2.3168056]
[1769984017472,2.66439452,2333.4,2331.8,2.3168056]
[1769984017778,2.50195977,2333.1,2331.8,2.3168056]
[1769984017974,0.21458,2332.8,2331.4,2.43403484]
[1769984018181,2.28740977,2332.6,2331.4,2.43912401]
[1769984018375,0.21464,2332.2,2329.8,0.21485]
[1769984018580,2.50207977,2331.8,2330.6,2.43403484]
[1769984018776,2.50207977,2331.8,2330.2,2.43403484]
[1769984019072,2.50211977,2331.3,2329.4,2.43403484]
[1769984019579,2.72670282,2331.3,2329.4,2.43947761]
[1769984019777,2.50211977,2331.3,2329.4,2.43947761]
[1769984020075,2.28740977,2331.3,2329.4,2.43947761]
[1769984020275,2.28740977,2331.0,2329.4,2.43947761]
[1769984020576,2.50217977,2330.7,2329.4,0.00544277]
[1769984020776,2.51199282,2330.5,2329.4,0.00544277]
[1769984020981,0.22458305,2330.4,2329.4,0.00544277]
[1769984021176,2.28740977,2330.9,2329.4,2.43947761]
[1769984021479,0.22458305,2330.6,2329.4,2.43947761]
[1769984021878,2.28740977,2330.9,2329.4,2.43947761]
[1769984022175,2.28740977,2330.8,2329.4,0.00544277]
[1769984022376,2.51199282,2330.5,2329.4,0.00544277]
[1769984022583,2.28740977,2330.5,2329.4,0.00544277]
[1769984022784,0.22458305,2330.0,2329.4,0.00544277]
[1769984023082,0.22458305,2330.2,2329.4,0.00544277]
[1769984023482,0.22458305,2330.1,2329.4,0.00544277]
[1769984023784,2.29114039,2331.0,2329.4,2.43947761]
[1769984023983,2.28740977,2330.7,2329.4,2.43947761]
[1769984024284,2.28740977,2330.5,2329.4,0.00544277]
[1769984024676,0.22458305,2330.3,2329.4,0.00544277]
[1769984024878,2.28740977,2330.5,2329.4,0.00544277]
[1769984025080,2.51199282,2329.9,2328.7,7.81755997]
[1769984025281,2.28740977,2329.7,2328.6,2.43403484]
[1769984025478,2.28740977,2329.7,2328.2,6.29703484]
[1769984026083,2.28740977,2329.7,2328.3,2.39688431]
[1769984026576,3.864,2330.2,2328.3,2.39688431]
[1769984026577,0.22458305,2329.6,2328.3,2.39688431]
[1769984026783,2.35677055,2329.9,2328.3,2.39688431]
[1769984027081,2.5813536,2329.9,2328.3,2.39688431]
[1769984027282,3.864,2330.2,2328.2,6.26391766]
[1769984027283,2.5813536,2329.6,2328.2,6.26391766]
[1769984027481,2.35677055,2329.6,2328.2,6.26391766]
[1769984027784,0.22458305,2329.3,2328.2,6.26391766]
[1769984027987,2.58492855,2329.3,2328.2,0.00403335]
[1769984028189,0.22458305,2329.0,2328.2,0.00403335]
[1769984028588,0.22458305,2328.9,2328.2,0.00403335]
[1769984028884,2.5813536,2329.0,2328.2,0.00403335]
[1769984029186,2.35677055,2328.6,2327.5,0.6717707]
[1769984029689,0.22458305,2327.6,2326.3,2.39688431]
[1769984029878,2.35677055,2327.7,2326.3,2.39688431]
[1769984030086,2.36086619,2327.7,2326.3,2.40202872]
[1769984030288,2.35677055,2327.5,2326.3,2.40202872]
[1769984030580,2.35677055,2327.3,2326.3,0.00514441]
[1769984030783,0.00409564,2327.7,2325.4,3.865]
[1769984030784,2.5813536,2326.6,2325.4,3.865]
[1769984030990,2.35677055,2326.6,2325.3,2.39688431]
[1769984031179,0.22458305,2326.4,2325.3,2.39688431]
[1769984031481,3.866,2327.2,2324.9,2.39688431]
[1769984031482,2.35677055,2326.2,2324.9,2.39688431]
[1769984031687,2.35677055,2326.2,2324.9,2.39999218]
[1769984031880,2.5813536,2326.1,2324.9,2.39999218]
[1769984032083,2.35677055,2326.1,2324.9,2.39999218]
[1769984032389,0.22458305,2325.9,2324.9,0.00310787]
[1769984032588,0.00333119,2325.9,2324.9,0.00310787]
[1769984032784,0.22458305,2325.7,2324.9,0.00310787]
[1769984033288,0.00333119,2325.9,2324.9,2.39999218]
[1769984034088,3.866,2326.4,2324.9,2.39999218]
[1769984034584,2.35677055,2326.8,2324.9,2.39999218]
[1769984034783,2.35677055,2326.6,2324.9,2.39999218]
[1769984034982,2.36218559,2326.6,2324.9,2.39999218]
[1769984035189,2.35677055,2326.4,2324.9,0.00310787]
[1769984035381,2.5813536,2325.9,2324.9,0.00310787]
[1769984035683,0.22458305,2326.3,2324.1,2.39688431]
[1769984035882,2.35677055,2326.2,2324.1,2.39688431]
[1769984036086,2.36218559,2326.6,2324.7,2.61220431]
[1769984036285,2.58676864,2326.6,2324.7,2.39688431]
[1769984036589,2.58676864,2326.6,2324.7,2.40152644]
[1769984036590,2.35677055,2326.0,2324.7,2.40152644]
[1769984036986,2.35677055,2325.9,2324.7,0.00464213]
[1769984037587,2.35677055,2325.6,2324.7,0.00464213]
[1769984037785,2.35677055,2326.0,2324.7,2.40152644]
[1769984037990,2.35677055,2325.3,2323.9,2.39688431]
[1769984038388,2.35677055,2325.5,2323.9,2.39688431]
[1769984039083,2.35677055,2325.5,2323.9,2.400011]
[1769984040190,2.35677055,2326.0,2323.9,2.400011]
[1769984040391,2.35677055,2326.1,2324.1,2.61226431]
[1769984040688,2.35677055,2326.9,2324.7,2.39688431]
[1769984040886,2.35677055,2326.9,2324.9,2.39688431]
[1769984041084,2.36218559,2326.6,2324.9,2.39688431]
[1769984041291,2.5813536,2326.5,2324.9,2.39688431]
[1769984041490,2.35677055,2326.5,2324.5,2.39688431]
[1769984041689,2.35677055,2326.2,2324.5,2.39688431]
[1769984041889,2.35677055,2325.6,2324.1,2.39688431]
[1769984042089,2.35677055,2325.6,2323.9,0.00312669]
[1769984042286,2.5813536,2325.5,2323.9,2.400011]
[1769984042492,2.35677055,2325.1,2323.9,2.400011]
[1769984042790,2.5813536,2324.9,2323.9,0.00312669]
[1769984042986,2.35677055,2324.5,2323.0,2.39688431]
[1769984043190,2.35677055,2324.5,2323.3,2.61884887]
[1769984043388,2.5813536,2324.5,2323.3,2.61884887]
[1769984043591,0.22458305,2324.3,2323.3,2.61884887]
[1769984043888,2.35677055,2324.5,2323.3,2.61884887]
[1769984044093,2.35677055,2324.5,2323.3,2.62302237]
[1769984044294,0.00331256,2324.9,2323.3,2.62302237]
[1769984044295,2.36008311,2324.9,2323.3,2.62302237]
[1769984044490,0.00331256,2324.9,2323.3,2.62302237]
[1769984044697,2.35677055,2324.8,2323.3,2.62302237]
[1769984045000,2.5813536,2324.5,2323.3,0.22613806]
[1769984045495,2.35677055,2324.5,2323.3,0.22613806]
[1769984045698,0.22458305,2323.6,2322.5,12.76218164]
[1769984045996,3.872,2324.5,2322.6,2.39688431]
[1769984046193,0.00331256,2324.9,2323.5,2.39688431]
[1769984046493,2.35677055,2324.6,2322.8,3.872]
[1769984046699,0.00331256,2324.9,2322.8,2.40231802]
[1769984046901,2.35677055,2324.7,2322.8,2.40231802]
[1769984047895,2.35677055,2324.7,2323.0,2.38116604]
[1769984048093,2.35677055,2324.7,2323.1,2.38116604]
[1769984048297,2.35677055,2324.7,2323.3,2.38116604]
[1769984048502,2.35677055,2324.7,2323.0,0.67329721]
[1769984048699,2.35677055,2324.7,2322.9,2.38116604]
[1769984048998,2.34128633,2324.5,2322.9,2.38116604]
[1769984049392,3.872,2324.8,2323.1,2.38116604]
[1769984049393,6.21328633,2324.8,2323.1,2.38116604]
[1769984049591,2.34128633,2324.7,2323.1,2.38116604]
[1769984050396,2.34128633,2324.7,2323.2,3.05446325]
[1769984050597,2.34128633,2324.7,2323.2,2.38116604]
[1769984051095,2.34128633,2324.4,2322.8,3.05989696]
[1769984051302,2.34128633,2324.4,2323.0,2.38116604]
[1769984051499,2.34128633,2324.4,2322.9,0.67329721]
[1769984051800,2.34128633,2324.6,2323.1,2.38116604]
[1769984052495,2.34128633,2324.6,2323.1,0.67329721]
[1769984052798,2.34128633,2324.3,2322.8,3.05989696]
[1769984053102,2.34128633,2324.3,2322.9,2.38116604]
[1769984053401,2.34128633,2324.3,2323.0,0.67329721]
[1769984053592,2.34128633,2324.3,2323.0,0.67325665]
[1769984053995,2.34128633,2324.3,2323.1,0.67325665]
[1769984054194,2.34128633,2324.3,2322.9,2.38116604]
[1769984054195,2.34128633,2324.3,2323.2,0.67321967]
[1769984054397,2.34128633,2324.3,2322.9,2.38116604]
[1769984054592,2.34128633,2324.3,2323.3,0.22196456]
[1769984055196,2.34128633,2324.6,2323.4,0.67311797]
[1769984055499,2.34128633,2324.6,2323.3,2.6031306]
[1769984055500,2.34128633,2324.6,2323.5,0.67311797]
[1769984055700,2.34128633,2324.6,2323.6,0.67311797]
[1769984055900,0.00331256,2324.9,2323.7,0.67311797]
[1769984056202,2.34128633,2324.8,2323.8,0.67311797]
[1769984056404,2.34128633,2324.8,2323.9,0.67311797]
[1769984056701,2.34128633,2324.8,2324.0,0.67311797]
[1769984056901,2.34128633,2324.8,2324.1,0.67305379]
[1769984057201,2.34128633,2324.8,2324.2,0.67302871]
[1769984057402,2.34128633,2324.8,2324.3,0.67302871]
[1769984057602,2.34128633,2324.8,2323.6,2.38116604]
[1769984057902,2.34128633,2324.8,2323.7,0.67302773]
[1769984058104,2.34128633,2324.8,2323.8,0.67302773]
[1769984058398,2.34128633,2324.8,2323.9,0.67302773]
[1769984058697,0.00331256,2324.9,2324.0,3.05419377]
[1769984058900,2.34128633,2325.6,2324.2,2.38116604]
[1769984059097,2.34128633,2324.9,2324.3,0.67302773]
[1769984059298,2.34128633,2324.9,2324.4,0.67302773]
[1769984059495,2.34128633,2324.9,2323.8,6.96246092]
[1769984059903,0.00352421,2324.9,2324.0,2.38116604]
[1769984060208,2.55652633,2325.6,2324.2,4.82154605]
[1769984060503,2.55652633,2325.6,2324.3,9.34362696]
[1769984060698,2.55652633,2325.6,2324.4,6.90324695]
[1769984060898,2.55652633,2325.6,2324.5,4.54000045]
[1769984061099,2.56142474,2325.6,2324.5,0.00438695]
[1769984061302,2.34128633,2326.4,2325.0,4.82154605]
[1769984061506,2.34128633,2326.4,2325.1,4.53818603]
[1769984061802,2.34128633,2326.4,2325.0,4.82154605]
[1769984062004,2.34128633,2326.4,2325.2,2.38116604]
[1769984062204,2.55645633,2326.4,2325.0,2.44038001]
[1769984062401,2.34128633,2326.0,2324.9,6.08657071]
[1769984062605,2.55649633,2326.0,2324.9,2.44038001]
[1769984063207,2.55649633,2326.0,2325.0,6.97999344]
[1769984063400,2.55649633,2326.0,2325.0,2.44038001]
[1769984063600,2.55649633,2326.0,2324.9,2.52471478]
[1769984063806,2.55649633,2326.0,2325.0,4.54066257]
[1769984064105,2.55649633,2326.0,2325.0,2.52471478]
[1769984064306,2.34128633,2325.8,2324.9,2.52471478]
[1769984064502,2.34128633,2326.2,2325.0,9.44879621]
[1769984064800,2.34128633,2326.2,2325.2,2.52471478]
[1769984065207,2.34128633,2326.2,2325.1,2.52471478]
[1769984065400,2.34128633,2326.2,2325.2,4.54191198]
[1769984065602,0.00309537,2326.4,2325.3,6.92256528]
[1769984065800,0.00309537,2326.4,2325.3,4.90588082]
[1769984066000,2.3443817,2326.4,2325.3,4.90588082]
[1769984066307,2.34128633,2326.2,2325.2,2.52471478]
[1769984066505,2.34128633,2325.9,2324.8,2.52471478]
[1769984066806,2.55646633,2326.3,2325.0,2.38116604]
[1769984067198,2.55646633,2326.3,2325.0,4.90588082]
[1769984067402,2.55646633,2326.3,2325.1,6.91145676]
[1769984067703,2.55646633,2326.3,2325.1,4.90588082]
[1769984067905,2.55646633,2326.3,2325.2,4.52928044]
[1769984068204,2.55646633,2326.3,2325.2,2.38116604]
[1769984068397,2.55646633,2326.3,2325.3,2.38116604]
[1769984069105,0.21518,2326.3,2325.3,2.38116604]
[1769984069506,0.21512,2326.9,2325.9,4.90588082]
[1769984069808,3.40723319,2328.3,2325.8,2.52471478]
[1769984069809,2.55641633,2326.8,2325.8,2.52471478]
[1769984069999,2.55641633,2326.8,2325.9,4.52250778]
[1769984070203,0.21513,2326.8,2325.8,4.90588082]
[1769984070404,0.22002749,2326.8,2325.9,2.38116604]
[1769984071203,0.00489749,2326.8,2325.9,6.8968302]
[1769984071499,2.34128633,2327.0,2326.0,5.12706024]
[1769984071702,2.34128633,2327.0,2325.9,6.89638479]
[1769984071901,2.34128633,2327.0,2326.0,0.61191501]
[1769984072101,2.34128633,2327.0,2325.9,9.42109957]
[1769984072300,0.0046122,2327.0,2326.0,2.99227111]
[1769984072504,0.21507,2327.5,2326.2,2.38116604]
[1769984072703,2.55635633,2327.5,2326.2,2.99188634]
[1769984073105,2.55635633,2327.5,2326.2,2.38116604]
[1769984073404,2.55637633,2327.3,2326.3,2.38116604]
[1769984073901,2.55637633,2327.2,2326.2,0.00369848]
[1769984074707,0.21512,2326.9,2326.2,0.00369848]
[1769984075305,0.00507017,2327.5,2326.3,2.38116604]
[1769984075607,2.55629633,2328.1,2326.7,2.38116604]
[1769984075807,2.55629633,2328.1,2326.8,2.99110303]
[1769984076008,2.55629633,2328.1,2326.8,2.38116604]
[1769984076405,2.34128633,2328.0,2326.6,0.60993699]
[1769984076607,2.55632633,2327.8,2326.4,2.38116604]
[1769984077809,2.34128633,2327.8,2326.4,2.38116604]
[1769984078004,2.66927731,2327.3,2326.2,0.61272966]
[1769984078206,2.66931731,2327.0,2326.2,0.00369848]
[1769984078809,6.54131731,2327.0,2326.2,0.00369848]
[1769984079006,2.45419731,2326.9,2326.2,0.00369848]
[1769984079205,2.45419731,2326.9,2325.7,2.36650398]
[1769984079405,2.45419731,2326.4,2325.3,2.36650398]
[1769984079611,2.45419731,2326.4,2325.3,2.97618875]
[1769984080112,2.45419731,2326.4,2325.3,2.36650398]
[1769984080313,2.45975779,2326.4,2325.3,2.37137427]
[1769984080711,2.45975779,2326.4,2325.3,0.00487029]
[1769984080912,2.45419731,2325.9,2324.6,2.36650398]
[1769984081111,2.45419731,2325.7,2324.7,0.61025449]
[1769984081311,2.45419731,2325.7,2324.8,0.61025449]
[1769984081510,2.45419731,2325.7,2324.7,0.61025449]
[1769984081710,2.45419731,2325.7,2324.8,0.61025449]
[1769984081913,6.54139731,2326.0,2324.8,0.00463263]
[1769984082109,6.54139731,2326.0,2324.8,0.61488712]
[1769984082304,0.2152,2326.0,2324.9,0.61025449]
[1769984082509,0.2152,2326.0,2325.1,2.36650398]
[1769984082707,2.45975779,2326.4,2325.1,2.36650398]
[1769984082910,2.45975779,2326.4,2325.3,2.36650398]
[1769984083310,2.45975779,2326.4,2325.1,2.97739603]
[1769984083510,2.45975779,2326.4,2325.2,0.61150573]
[1769984083813,2.45975779,2326.4,2325.3,0.61150573]
[1769984084014,2.45975779,2326.4,2325.1,2.36650398]
[1769984084215,2.45975779,2326.4,2325.2,0.61147032]
[1769984084419,2.45975779,2326.4,2325.3,0.61147032]
[1769984084614,2.45975779,2326.4,2325.4,0.61204976]
[1769984084921,0.00556048,2326.4,2325.2,2.36650398]
[1769984085114,0.00556048,2326.4,2325.3,2.9785153]
[1769984085316,2.45419731,2326.3,2325.4,0.61201132]
[1769984085616,2.45419731,2326.3,2325.1,2.52471478]
[1769984085814,2.45419731,2326.3,2325.2,0.61260551]
[1769984086017,2.66937731,2326.3,2325.3,0.61260551]
[1769984086218,2.66937731,2326.3,2325.2,4.49509967]
[1769984086418,2.66937731,2326.3,2325.3,0.61306073]
[1769984086616,2.25923882,2326.1,2325.2,2.25982067]
[1769984086917,0.21519,2326.2,2325.3,0.61304586]
[1769984087118,0.00556048,2326.4,2325.5,2.25982067]
[1769984087320,0.21513,2326.8,2325.7,2.25982067]
[1769984087819,0.21513,2326.8,2325.8,0.60206793]
[1769984088018,0.21513,2326.8,2325.7,2.25982067]
[1769984088322,0.22048343,2326.8,2325.8,0.60207196]
[1769984088519,0.00535343,2326.8,2326.0,2.25982067]
[1769984089015,0.00535343,2326.8,2325.8,2.52471478]
[1769984089222,2.26459225,2326.8,2325.9,0.60237749]
[1769984089416,2.26459225,2326.8,2325.8,2.52471478]
[1769984089417,2.26459225,2326.8,2326.0,0.60237749]
[1769984089620,2.26459225,2326.8,2325.8,4.49931755]
[1769984089922,2.47972225,2326.8,2325.9,0.60285298]
[1769984090125,2.47440882,2326.4,2325.4,2.52471478]
[1769984090622,2.47440882,2326.4,2325.2,2.25982067]
[1769984090923,2.25923882,2326.7,2325.3,2.25982067]
[1769984091117,2.25923882,2326.7,2325.5,2.52471478]
[1769984091316,2.47437882,2326.7,2325.4,4.78453545]
[1769984091514,2.25923882,2326.6,2325.3,3.6461907]
[1769984091714,0.21521,2326.0,2324.8,0.00463263]
[1769984091919,0.21525,2325.6,2324.8,2.50419789]
[1769984092313,4.0872,2326.1,2325.1,2.49943649]
[1769984092916,3.872,2326.1,2324.8,0.00463263]
[1769984093122,0.21524,2325.7,2324.8,0.00463263]
[1769984095027,4.08824,2325.6,2324.8,2.48787603]
[1769984095523,3.873,2325.6,2324.8,0.00463263]
[1769984096320,0.21526,2325.4,2324.8,0.00463263]
[1769984096516,0.21526,2325.4,2324.5,2.4832434]
[1769984097523,0.21526,2325.4,2324.5,2.48830156]
[1769984097825,0.21526,2325.4,2324.5,6.78750156]
[1769984098427,3.873,2325.6,2324.7,2.48321643]
[1769984098628,3.873,2325.6,2324.9,2.48321643]
[1769984099021,0.21521,2325.9,2325.2,4.2992]
[1769984099227,0.21523,2325.8,2325.0,2.48321643]
[1769984100130,3.873,2326.0,2325.2,2.48326755]
[1769984100431,0.21523,2325.8,2324.7,2.48326755]
[1769984100826,0.21525,2325.6,2324.9,2.48326755]
[1769984101429,0.21526,2325.4,2324.6,2.48326755]
[1769984102031,0.21527,2325.3,2324.6,2.48326755]
[1769984102228,0.21524,2325.7,2324.7,6.77585378]
[1769984102427,0.2153,2325.0,2324.5,8.16e-06]
[1769984102929,2.524,2324.9,2323.6,2.47665378]
[1769984103231,2.524,2324.9,2323.3,0.22196456]
[1769984103232,0.04582297,2324.7,2323.3,0.22196456]
[1769984103624,0.21539,2324.0,2323.3,0.17614159]
[1769984103824,0.21956941,2324.0,2323.3,0.00376302]
[1769984104024,0.21544,2323.5,2322.5,2.49956526]
[1769984104225,2.47470882,2323.1,2321.0,6.1949734]
[1769984104426,3.556,2323.9,2321.6,0.21561]
[1769984104427,6.34864882,2323.8,2321.6,0.21561]
[1769984104627,2.25923882,2323.7,2321.4,4.25351571]
[1769984104828,2.25923882,2323.1,2321.2,4.25351571]
[1769984105023,2.47473882,2322.9,2321.2,0.0036077]
[1769984105224,2.25923882,2322.7,2321.2,0.0036077]
[1769984105430,2.25923882,2322.6,2321.2,0.0036077]
[1769984105626,6.34874882,2322.7,2321.2,0.0036077]
[1769984105833,6.13323882,2322.7,2321.2,0.0036077]
[1769984106029,3.874,2323.4,2322.1,4.2992]
[1769984106334,3.874,2323.4,2321.8,2.25982067]
[1769984106532,3.874,2323.4,2322.0,2.25982067]
[1769984106934,6.13323882,2323.4,2322.2,2.25982067]
[1769984107335,6.13323882,2323.4,2322.3,4.2992]
[1769984107530,3.874,2323.4,2322.7,4.2992]
[1769984107738,3.874,2323.4,2322.6,2.32317909]
[1769984108029,2.60853506,2324.0,2323.1,4.2992]
[1769984108335,2.60853506,2324.0,2323.1,0.0037102]
[1769984108731,0.00417941,2324.0,2323.1,2.32688929]
[1769984108937,0.00417941,2324.0,2323.2,4.2992]
[1769984109336,0.00417941,2324.0,2323.3,4.2992]
[1769984109635,0.00417941,2324.0,2323.6,4.2992]
[1769984109828,6.26396565,2324.5,2323.5,4.2992]
[1769984110032,6.26396565,2324.5,2323.3,2.32317909]
[1769984110433,0.21534,2324.6,2323.6,2.32317909]
[1769984110831,2.60430565,2324.5,2323.2,2.32317909]
[1769984111035,2.60430565,2324.5,2323.2,6.62237909]
[1769984111235,0.21534,2324.5,2323.6,6.62237909]
[1769984111432,0.21534,2324.5,2323.6,2.32317909]
[1769984111637,0.21534,2324.5,2323.8,4.2992]
[1769984112138,0.21534,2324.5,2323.9,4.2992]
[1769984112332,2.60432565,2324.4,2323.2,2.32317909]
[1769984112534,2.60433565,2324.2,2323.1,0.0037102]
[1769984112836,2.60435565,2324.0,2323.1,0.0037102]
[1769984113033,0.00461721,2324.6,2323.2,2.32317909]
[1769984113238,0.00461721,2324.6,2323.3,2.32317909]
[1769984113537,0.00461721,2324.6,2324.0,2.32317909]
[1769984113736,0.21534,2324.6,2323.4,2.32317909]
[1769984114238,0.21534,2324.6,2321.2,5.0371933]
[1769984114239,2.38896565,2323.5,2321.2,5.0371933]
[1769984114439,2.38896565,2323.9,2322.0,0.21557]
[1769984114640,2.38896565,2323.9,2321.4,5.0371933]
[1769984114833,2.38896565,2323.7,2321.8,4.2992]
[1769984115135,2.39259736,2323.7,2321.8,0.22011735]